bitfinex/quotes_ETHUSD_20230110
["timestamp","ask_amount","ask_price","bid_price","bid_amount"]
[1673392431976,0.11352621,1338.2,1338.1,15.33956315]
[1673392433414,0.11352621,1338.2,1338.1,22.81284315]
[1673392433632,0.11352621,1338.2,1338.1,30.28612315]
[1673392435244,0.11352621,1338.2,1338.1,15.33956315]
[1673392435463,0.11352621,1338.2,1338.1,7.86628315]
[1673392437193,0.11352621,1338.2,1338.1,5.1129865]
[1673392438041,0.11352621,1338.2,1338.1,12.5862665]
[1673392438398,0.11352621,1338.2,1338.1,5.1129865]
[1673392439434,0.11352621,1338.2,1338.1,12.5862665]
[1673392440446,0.11352621,1338.2,1338.1,5.1129865]
[1673392440759,0.11352621,1338.2,1338.1,7.11897215]
[1673392441252,0.11352621,1338.2,1338.1,14.59225215]
[1673392442187,0.11352621,1338.2,1338.1,7.11897215]
[1673392442427,0.11352621,1338.2,1338.1,14.59023444]
[1673392442644,0.11352621,1338.2,1338.1,7.11695444]
[1673392443253,0.11352621,1338.2,1338.1,14.59023444]
[1673392444969,0.85304281,1338.3,1338.1,36.68575054]
[1673392445179,0.85304281,1338.3,1338.2,16.29249612]
[1673392445365,0.85304281,1338.3,1338.2,38.77596427]
[1673392446119,0.85304281,1338.3,1338.2,40.6298782]
[1673392446491,2.81e-06,1338.3,1338.2,43.4106505]
[1673392446702,0.11714806,1338.4,1338.2,43.4106505]
[1673392446965,0.11714806,1338.4,1338.3,30.63649944]
[1673392447134,0.11714806,1338.4,1338.3,37.50131123]
[1673392447343,0.11714806,1338.4,1338.3,39.18331123]
[1673392449062,0.11714806,1338.4,1338.3,35.38380759]
[1673392452179,0.11714806,1338.4,1338.3,33.70180759]
[1673392453245,0.11714806,1338.4,1338.3,37.50308882]
[1673392453457,0.11714806,1338.4,1338.3,41.03878155]
[1673392453671,0.11714806,1338.4,1338.3,39.18508882]
[1673392455157,0.11714806,1338.4,1338.3,41.03879166]
[1673392455392,0.11714806,1338.4,1338.3,39.18508882]
[1673392456011,0.11714806,1338.4,1338.3,41.03878742]
[1673392456439,0.11714806,1338.4,1338.3,39.18508882]
[1673392456836,0.11714806,1338.4,1338.3,39.18602413]
[1673392457971,0.11714806,1338.4,1338.3,43.82010613]
[1673392459048,0.11714806,1338.4,1338.3,43.82014783]
[1673392459447,0.11714806,1338.4,1338.3,41.03965693]
[1673392459659,0.12649786,1338.6,1338.4,5.28258267]
[1673392459856,0.12649786,1338.6,1338.5,40.56407891]
[1673392460065,0.12649786,1338.6,1338.5,46.28632399]
[1673392460411,0.07649786,1338.6,1338.5,46.28632399]
[1673392460817,0.07649786,1338.6,1338.5,44.43290654]
[1673392461677,0.07649786,1338.6,1338.5,31.47634706]
[1673392462223,0.07649786,1338.6,1338.5,29.80434706]
[1673392462378,1.34249786,1338.6,1338.5,6.86296879]
[1673392462592,1.34249786,1338.6,1338.5,3.86296879]
[1673392462798,1.34249786,1338.6,1338.5,3.79766064]
[1673392463010,1.34249786,1338.6,1338.4,0.33389082]
[1673392463269,5.52449786,1338.6,1338.4,4.06624331]
[1673392463486,1.81844979,1338.5,1338.4,4.06624331]
[1673392463795,3.50044979,1338.5,1338.4,0.26858267]
[1673392463968,30.0463488,1338.5,1338.4,0.26858267]
[1673392464176,33.98453522,1338.5,1338.4,0.26858267]
[1673392464525,13.4932688,1338.5,1338.4,0.26858267]
[1673392464846,4.12704979,1338.5,1338.4,7.74018267]
[1673392465000,4.06104979,1338.5,1338.4,7.80549082]
[1673392465210,4.06104979,1338.5,1338.4,0.33389082]
[1673392465463,4.06104979,1338.5,1338.4,7.74018267]
[1673392465677,4.06104979,1338.5,1338.4,15.27709082]
[1673392466083,4.06104979,1338.5,1338.4,22.74869082]
[1673392466256,2.79504979,1338.5,1338.4,22.74869082]
[1673392467515,2.79504979,1338.5,1338.4,15.27709082]
[1673392468202,2.79504979,1338.5,1338.4,0.33389082]
[1673392468365,2.79504979,1338.5,1338.4,0.26858267]
[1673392468788,3.01179351,1338.5,1338.4,0.26858267]
[1673392469623,27.10691351,1338.5,1338.4,0.26858267]
[1673392469867,19.70187351,1338.5,1338.4,0.26858267]
[1673392470302,14.73083351,1338.5,1338.4,0.26858267]
[1673392470575,7.25979351,1338.5,1338.4,0.26858267]
[1673392470953,14.73083351,1338.5,1338.4,0.26858267]
[1673392471410,22.20187351,1338.5,1338.4,0.26858267]
[1673392471576,23.32024421,1338.5,1338.4,0.26858267]
[1673392472026,7.25979351,1338.5,1338.4,0.26858267]
[1673392472888,4.75979351,1338.5,1338.4,0.26858267]
[1673392473201,4.69379351,1338.5,1338.4,15.21178267]
[1673392473364,4.13319351,1338.5,1338.4,7.80549082]
[1673392473888,4.13319351,1338.5,1338.4,0.33389082]
[1673392474238,29.15068421,1338.5,1338.4,0.26858267]
[1673392474446,29.77626772,1338.5,1338.4,0.26858267]
[1673392475200,40.67941426,1338.5,1338.4,0.26858267]
[1673392475572,53.06401426,1338.5,1338.4,0.26858267]
[1673392476848,56.93620068,1338.5,1338.4,0.26858267]
[1673392477055,55.25824647,1338.5,1338.4,0.26858267]
[1673392477267,56.93156137,1338.5,1338.4,0.26858267]
[1673392477605,55.25824647,1338.5,1338.4,0.26858267]
[1673392477816,55.48824647,1338.5,1338.4,0.26858267]
[1673392478198,51.61606005,1338.5,1338.4,0.26858267]
[1673392478519,53.28938562,1338.5,1338.4,0.26858267]
[1673392479403,52.60838562,1338.5,1338.4,0.26858267]
[1673392479562,50.37963908,1338.5,1338.4,0.26858267]
[1673392479767,35.43755908,1338.5,1338.4,0.26858267]
[1673392480039,26.24332799,1338.5,1338.4,0.26858267]
[1673392480355,22.67174372,1338.5,1338.4,7.74018267]
[1673392480511,10.28714372,1338.5,1338.4,0.33389082]
[1673392480719,10.28714372,1338.5,1338.4,0.26858267]
[1673392480932,10.28714372,1338.5,1338.4,7.74018267]
[1673392481147,2.72855263,1338.5,1338.4,0.33389082]
[1673392481353,4.65706489,1338.5,1338.4,0.26858267]
[1673392482467,28.74351046,1338.5,1338.4,0.26858267]
[1673392482611,28.80951046,1338.5,1338.4,0.26858267]
[1673392484314,27.69370155,1338.5,1338.4,0.26858267]
[1673392484524,28.80924314,1338.5,1338.4,0.26858267]
[1673392484734,27.69370155,1338.5,1338.4,0.26858267]
[1673392485132,27.69370155,1338.5,1338.4,0.26558697]
[1673392487395,27.92370155,1338.5,1338.4,0.26558697]
[1673392487718,37.24749557,1338.5,1337.9,0.06530815]
[1673392488028,2.45420413,1338.2,1337.9,3.79766064]
[1673392488349,24.87302413,1338.2,1337.9,3.79766064]
[1673392488515,22.41984,1338.1,1337.9,3.79766064]
[1673392488717,7.53928,1338.1,1337.9,3.79766064]
[1673392488945,9.921703,1338.1,1337.9,3.79766064]
[1673392489436,2.448423,1338.1,1337.9,3.79766064]
[1673392489733,9.855773,1338.1,1337.9,3.79766064]
[1673392489892,9.921773,1338.1,1337.9,3.79766064]
[1673392492007,9.921873,1338.1,1337.9,3.79766064]
[1673392493366,17.395323,1338.1,1337.9,3.79766064]
[1673392493726,24.868773,1338.1,1337.9,3.79766064]
[1673392494443,9.921873,1338.1,1337.9,3.79766064]
[1673392494635,24.868603,1338.1,1337.9,3.79766064]
[1673392494843,9.921703,1338.1,1337.9,3.79766064]
[1673392495052,24.868263,1338.1,1337.9,3.79766064]
[1673392495281,2.4868263,1338.0,1337.8,7.80050815]
[1673392495497,9.9607263,1338.0,1337.8,3.86296879]
[1673392495666,10.0267263,1338.0,1337.8,3.79766064]
[1673392495876,2.5528263,1338.0,1337.8,3.79766064]
[1673392496138,2.4868263,1338.0,1337.8,3.79766064]
[1673392496877,9.921703,1338.1,1337.8,3.79766064]
[1673392497056,9.921703,1338.1,1338.0,1.97812577]
[1673392497406,17.394983,1338.1,1338.0,1.97812577]
[1673392498732,26.207513,1338.1,1338.0,1.97812577]
[1673392499092,28.104313,1338.1,1338.0,1.97812577]
[1673392500452,29.21951713,1338.1,1338.0,1.97812577]
[1673392500662,28.104313,1338.1,1338.0,1.97812577]
[1673392501258,29.21951713,1338.1,1338.0,1.97812577]
[1673392502501,29.44951713,1338.1,1338.0,1.97812577]
[1673392504022,23.78759751,1337.9,1337.7,0.13273622]
[1673392504186,29.64409876,1337.8,1337.7,0.06742807]
[1673392504396,44.97062979,1337.8,1337.7,0.06742807]
[1673392504764,45.18488673,1337.8,1337.7,0.06742807]
[1673392504913,65.90789043,1337.8,1337.7,0.06742807]
[1673392505123,76.01972079,1337.8,1337.7,0.06742807]
[1673392505388,72.69440693,1337.8,1337.7,0.06742807]
[1673392505617,69.34910053,1337.8,1337.7,0.06742807]
[1673392505755,84.10121954,1337.8,1337.7,2.807e-05]
[1673392505963,2.5,1337.7,1337.6,0.06742807]
[1673392506177,40.23055262,1337.7,1337.6,0.06742807]
[1673392506507,41.04867163,1337.7,1337.6,0.06742807]
[1673392506692,48.52418163,1337.7,1337.6,0.06742807]
[1673392506904,51.52227094,1337.7,1337.6,8.07e-06]
[1673392507245,49.85318163,1337.7,1337.6,8.07e-06]
[1673392507454,54.85318163,1337.7,1337.6,8.07e-06]
[1673392508014,54.10106262,1337.7,1337.6,8.07e-06]
[1673392508657,54.85318163,1337.7,1337.6,8.07e-06]
[1673392509021,56.52227094,1337.7,1337.6,8.07e-06]
[1673392509232,54.85318163,1337.7,1337.6,8.07e-06]
[1673392509495,53.74045086,1337.7,1337.6,8.07e-06]
[1673392509655,62.32869163,1337.7,1337.4,0.07792333]
[1673392509872,4.017,1337.5,1337.4,0.07792333]
[1673392510099,29.67689,1337.5,1337.4,0.07792333]
[1673392510441,30.49500901,1337.5,1337.4,0.07792333]
[1673392511490,34.36761471,1337.5,1337.4,0.07792333]
[1673392512317,34.92861471,1337.5,1337.4,0.07792333]
[1673392512547,29.911,1337.3,1337.2,0.92946215]
[1673392512853,58.38331805,1337.3,1337.2,0.92946215]
[1673392513062,59.13543706,1337.3,1337.2,0.92946215]
[1673392514110,68.13943706,1337.3,1337.2,0.92946215]
[1673392514323,68.13943706,1337.3,1337.2,2.15e-06]
[1673392515359,2.5,1337.2,1337.0,0.08604947]
[1673392515572,37.43234064,1337.1,1337.0,0.08604947]
[1673392515764,45.11215673,1337.1,1337.0,0.08604947]
[1673392516527,46.25045965,1337.1,1337.0,0.08604947]
[1673392516691,11.19831901,1337.1,1337.0,0.08604947]
[1673392516902,9.1072,1337.1,1337.0,0.08604947]
[1673392517760,4.1072,1337.1,1337.0,0.08604947]
[1673392518003,4.0412,1337.1,1337.0,0.08604947]
[1673392518722,11.52007,1337.1,1337.0,0.08604947]
[1673392518898,11.58607,1337.1,1337.0,0.08604947]
[1673392519366,4.1072,1337.1,1337.0,0.08604947]
[1673392519593,11.52007,1337.1,1337.0,0.08604947]
[1673392519802,11.58607,1337.1,1337.0,0.08604947]
[1673392519957,19.06494,1337.1,1337.0,0.08604947]
[1673392521341,11.58607,1337.1,1337.0,0.08604947]
[1673392521851,12.92507,1337.1,1337.0,0.08604947]
[1673392522743,5.4462,1337.1,1337.0,0.08604947]
[1673392523064,12.92507,1337.1,1337.0,0.08604947]
[1673392523611,11.58607,1337.1,1337.0,0.08604947]
[1673392523898,19.06494,1337.1,1337.0,0.08604947]
[1673392524113,4.1072,1337.1,1337.0,0.08604947]
[1673392524320,4.0412,1337.1,1337.0,0.08604947]
[1673392527036,12.2416,1337.2,1337.0,8.83147947]
[1673392527212,12.2416,1337.2,1337.0,1.41735762]
[1673392527432,12.2416,1337.2,1337.0,1.35204947]
[1673392530124,12.2416,1337.2,1337.0,0.08604947]
[1673392532417,10.26224719,1337.2,1337.0,2.58604947]
[1673392532993,10.26224719,1337.2,1337.0,0.08604947]
[1673392533205,25.21908719,1337.2,1337.0,0.08604947]
[1673392533418,28.78877591,1337.2,1337.0,0.08604947]
[1673392533901,21.31024591,1337.2,1337.0,0.08604947]
[1673392535003,28.78877591,1337.2,1337.0,0.08604947]
[1673392535633,37.60630591,1337.2,1337.0,0.08604947]
[1673392535844,30.12777591,1337.2,1337.0,0.08604947]
[1673392536061,5.51277759,1337.1,1337.0,0.08604947]
[1673392536252,3.07877759,1337.1,1337.0,0.08604947]
[1673392536464,3.01277759,1337.1,1337.0,0.08604947]
[1673392536898,5.51277759,1337.1,1337.0,0.08604947]
[1673392537147,5.57877759,1337.1,1337.0,0.08604947]
[1673392538051,10.55764759,1337.1,1337.0,0.08604947]
[1673392538267,13.05764759,1337.1,1337.0,0.08604947]
[1673392539559,10.55764759,1337.1,1337.0,0.08604947]
[1673392540894,18.03651759,1337.1,1337.0,0.08604947]
[1673392541313,10.55764759,1337.1,1337.0,0.08604947]
[1673392541774,18.03651759,1337.1,1337.0,0.08604947]
[1673392541959,10.55764759,1337.1,1337.0,0.08604947]
[1673392542136,18.03651759,1337.1,1337.0,0.08604947]
[1673392542567,10.55764759,1337.1,1337.0,0.08604947]
[1673392542816,18.03651759,1337.1,1337.0,0.08604947]
[1673392542978,25.51538759,1337.1,1337.0,0.08604947]
[1673392543424,18.03651759,1337.1,1337.0,0.08604947]
[1673392544717,25.51538759,1337.1,1337.0,0.08604947]
[1673392545079,10.55764759,1337.1,1337.0,0.08604947]
[1673392545817,0.066,1337.1,1337.0,0.08604947]
[1673392545999,24.22676668,1337.2,1337.0,0.08604947]
[1673392546447,23.66556668,1337.2,1337.0,0.08604947]
[1673392546667,27.57427796,1337.2,1337.0,0.08604947]
[1673392546827,35.05267796,1337.2,1337.0,0.08604947]
[1673392548521,44.20016727,1337.2,1337.0,0.08604947]
[1673392548747,45.53916727,1337.2,1337.0,0.08604947]
[1673392549360,3.61273077,1337.1,1337.0,0.08604947]
[1673392549573,22.70467568,1337.1,1337.0,0.08604947]
[1673392549923,24.43976499,1337.1,1337.0,0.08604947]
[1673392550139,31.91863499,1337.1,1337.0,0.08604947]
[1673392551882,30.80590422,1337.1,1337.0,0.08604947]
[1673392552665,29.42265262,1337.1,1337.0,0.08604947]
[1673392554236,2.10433771,1337.3,1337.1,1.97746345]
[1673392554451,5.52363248,1337.4,1337.1,5.03866345]
[1673392554452,1.1827484,1337.4,1337.1,5.03866345]
[1673392554635,1.1167484,1337.4,1337.1,16.9999116]
[1673392554807,1.1167484,1337.4,1337.1,18.11461828]
[1673392555232,1.1167484,1337.4,1337.1,20.79757224]
[1673392555444,1.1167484,1337.4,1337.2,2.07975722]
[1673392555695,1.1167484,1337.4,1337.2,24.51394722]
[1673392555872,1.1167484,1337.4,1337.2,17.10094537]
[1673392556218,1.1167484,1337.4,1337.2,9.62282537]
[1673392556499,1.1167484,1337.4,1337.2,24.57944537]
[1673392556824,1.1167484,1337.4,1337.3,2.45794454]
[1673392557067,1.1167484,1337.4,1337.3,24.89119454]
[1673392557244,1.1167484,1337.4,1337.3,17.47875269]
[1673392558716,1.1167484,1337.4,1337.3,10.00100269]
[1673392559349,1.93574841,1337.5,1337.3,10.00100269]
[1673392560171,1.93774841,1337.5,1337.3,17.47675269]
[1673392560382,1.93574841,1337.5,1337.3,17.47875269]
[1673392561547,1.93574841,1337.5,1337.4,1.74787527]
[1673392561754,0.81900001,1337.5,1337.4,9.22506527]
[1673392561973,0.81900001,1337.5,1337.4,9.29037342]
[1673392562162,0.81900001,1337.5,1337.4,1.81318342]
[1673392562401,0.81900001,1337.5,1337.4,1.74787527]
[1673392562632,0.81900001,1337.5,1337.3,7.65991333]
[1673392562825,0.81900001,1337.5,1337.3,6.32091333]
[1673392563017,0.81900001,1337.5,1337.3,3.86296879]
[1673392563227,1.93574841,1337.5,1337.3,3.79766064]
[1673392563445,0.81900001,1337.5,1337.3,3.79766064]
[1673392564399,0.81900001,1337.5,1337.3,11.27530064]
[1673392564671,0.81900001,1337.5,1337.3,11.34060879]
[1673392564845,0.81900001,1337.5,1337.3,7.11277797]
[1673392565000,9.41263841,1337.5,1337.3,3.31511733]
[1673392565206,24.43215841,1337.5,1337.2,2.14506537]
[1673392565420,24.43215841,1337.5,1337.2,5.87741786]
[1673392565661,24.43215841,1337.5,1337.2,5.94272601]
[1673392566472,16.95526841,1337.5,1337.2,5.94272601]
[1673392566683,24.43215841,1337.5,1337.2,5.94272601]
[1673392567046,16.95526841,1337.5,1337.2,5.94272601]
[1673392567784,9.47840841,1337.5,1337.2,5.94272601]
[1673392567939,2.00174841,1337.5,1337.2,5.94272601]
[1673392568152,1.93574841,1337.5,1337.2,13.42100601]
[1673392568435,1.93574841,1337.5,1337.2,20.89931601]
[1673392568800,1.93574841,1337.5,1337.2,13.42100601]
[1673392569467,0.81900001,1337.5,1337.2,13.42100601]
[1673392569789,0.81900001,1337.5,1337.2,5.94272601]
[1673392569940,8.29564001,1337.5,1337.2,5.94272601]
[1673392570161,8.36164001,1337.5,1337.2,5.94272601]
[1673392570361,0.88500001,1337.5,1337.2,13.42097601]
[1673392570573,0.81900001,1337.5,1337.2,13.42097601]
[1673392571333,15.77268001,1337.5,1337.2,5.94272601]
[1673392571551,24.43226841,1337.5,1337.2,3.86296879]
[1673392571740,24.43226841,1337.5,1337.1,9.9311716]
[1673392571949,24.43226841,1337.5,1337.1,13.72883224]
[1673392572828,26.10651683,1337.5,1337.1,13.72883224]
[1673392573575,1.339,1337.3,1337.1,2.0427716]
[1673392573720,9.58129646,1337.3,1337.1,1.97746345]
[1673392574093,2.92156547,1337.3,1337.1,1.97746345]
[1673392574246,2.85556547,1337.3,1337.1,1.97746345]
[1673392574456,10.33346547,1337.3,1337.1,1.97746345]
[1673392574713,10.39946547,1337.3,1337.1,1.97746345]
[1673392574896,9.06046547,1337.3,1337.1,1.97746345]
[1673392575321,9.06032547,1337.3,1337.1,1.97746345]
[1673392575505,1.58256547,1337.3,1337.1,1.97746345]
[1673392575712,1.51656547,1337.3,1337.1,1.97746345]
[1673392576347,8.99447547,1337.3,1337.1,1.97746345]
[1673392576557,16.53838547,1337.3,1337.1,1.97746345]
[1673392576822,9.06047547,1337.3,1337.1,1.97746345]
[1673392577609,1.58256547,1337.3,1337.1,1.97746345]
[1673392577825,1.51656547,1337.3,1337.1,1.97746345]
[1673392578380,8.99448547,1337.3,1337.1,1.97746345]
[1673392578589,1.58256547,1337.3,1337.1,1.97746345]
[1673392578805,8.99440547,1337.3,1337.1,1.97746345]
[1673392579132,9.06040547,1337.3,1337.1,1.97746345]
[1673392579305,1.58256547,1337.3,1337.1,1.97746345]
[1673392579515,8.99452547,1337.3,1337.1,1.97746345]
[1673392579759,1.58256547,1337.3,1337.1,1.97746345]
[1673392579976,1.51656547,1337.3,1337.1,1.97746345]
[1673392580763,0.76444646,1337.3,1337.1,1.97746345]
[1673392581222,32.19993741,1337.4,1337.1,1.97746345]
[1673392581388,30.86093741,1337.4,1337.1,1.97746345]
[1673392581600,30.29966741,1337.4,1337.1,1.97746345]
[1673392582023,7.81533741,1337.3,1337.1,1.97746345]
[1673392582282,7.88133741,1337.3,1337.1,1.97746345]
[1673392582982,0.40348741,1337.3,1337.1,1.97746345]
[1673392583197,0.33748741,1337.3,1337.1,1.97746345]
[1673392583596,0.33748741,1337.3,1337.1,9.45619345]
[1673392583814,0.33748741,1337.3,1337.1,2.0427716]
[1673392584184,0.33748741,1337.3,1337.1,1.97746345]
[1673392585177,7.81527741,1337.3,1337.1,1.97746345]
[1673392585387,15.35906741,1337.3,1337.1,1.97746345]
[1673392588589,7.88127741,1337.3,1337.1,1.97746345]
[1673392589167,0.40348741,1337.3,1337.1,1.97746345]
[1673392589375,1.45423581,1337.3,1337.1,1.97746345]
[1673392589690,8.93199581,1337.3,1337.1,1.97746345]
[1673392589905,8.99799581,1337.3,1337.1,1.97746345]
[1673392591164,10.67224423,1337.3,1337.1,1.97746345]
[1673392591518,1.1167484,1337.2,1337.1,1.97746345]
[1673392591747,13.17224423,1337.3,1337.1,1.97746345]
[1673392591907,15.04881786,1337.3,1337.1,1.97746345]
[1673392592771,1.1167484,1337.2,1337.1,1.97746345]
[1673392593117,13.00227462,1337.2,1337.1,1.97390013]
[1673392593330,33.67872565,1337.2,1337.1,1.97390013]
[1673392593642,32.79567723,1337.2,1337.1,1.97390013]
[1673392593831,22.178752,1337.2,1337.1,1.97390013]
[1673392594043,20.0033716,1337.2,1337.1,1.97390013]
[1673392594225,19.77336388,1337.2,1337.1,1.97390013]
[1673392594646,10.06634186,1337.2,1337.1,1.97390013]
[1673392594923,5.72664709,1337.2,1337.1,1.97390013]
[1673392595065,6.84290953,1337.2,1337.1,1.97390013]
[1673392596580,4.16990953,1337.2,1337.1,1.97390013]
[1673392596799,4.10390953,1337.2,1337.1,1.97390013]
[1673392597721,19.06052953,1337.2,1337.1,1.97390013]
[1673392598056,30.40344143,1337.2,1337.1,1.97390013]
[1673392598367,31.73644143,1337.2,1337.1,1.97390013]
[1673392602524,24.25813143,1337.2,1337.1,1.97390013]
[1673392603160,31.73566779,1337.2,1337.1,1.97390013]
[1673392603512,30.62017899,1337.2,1337.1,1.97390013]
[1673392604009,23.14186899,1337.2,1337.1,1.97390013]
[1673392604227,30.62017899,1337.2,1337.1,1.97390013]
[1673392605355,23.14186899,1337.2,1337.1,1.97390013]
[1673392605812,30.62017899,1337.2,1337.1,1.97390013]
[1673392605984,23.14186899,1337.2,1337.1,1.97390013]
[1673392606668,22.38974998,1337.2,1337.1,1.97390013]
[1673392606951,23.14186899,1337.2,1337.1,1.97390013]
[1673392607475,30.62017899,1337.2,1337.1,1.97390013]
[1673392609198,31.73570239,1337.2,1337.1,1.97390013]
[1673392609358,30.62017899,1337.2,1337.1,1.97390013]
[1673392609564,32.84889101,1337.2,1337.1,1.97390013]
[1673392609830,30.62017899,1337.2,1337.1,1.97390013]
[1673392610214,32.84889101,1337.2,1337.1,1.97390013]
[1673392611572,32.096772,1337.2,1337.1,1.97390013]
[1673392612044,30.42244392,1337.2,1337.1,1.97390013]
[1673392613114,36.16819116,1337.2,1337.1,1.97390013]
[1673392613291,36.16819116,1337.2,1337.1,1.97065776]
[1673392613292,36.39819116,1337.2,1337.1,1.97065776]
[1673392613504,32.54847496,1337.2,1337.1,1.97065776]
[1673392615012,34.77989141,1337.2,1337.1,1.97065776]
[1673392615368,32.54847496,1337.2,1337.1,1.97065776]
[1673392616268,34.7796271,1337.2,1337.1,1.97065776]
[1673392617322,31.99388404,1337.2,1337.1,1.97065776]
[1673392617958,33.66728583,1337.2,1337.1,1.97065776]
[1673392618949,31.99388404,1337.2,1337.1,1.97065776]
[1673392619470,1.73938491,1337.2,1337.1,1.97065776]
[1673392619604,2.78907146,1337.2,1337.1,1.97065776]
[1673392619811,1.11568655,1337.2,1337.1,1.97065776]
[1673392622661,2.2315878,1337.2,1337.1,1.97065776]
[1673392625951,2.2315878,1337.2,1337.1,22.0650584]
[1673392626181,2.2315878,1337.2,1337.1,12.12987464]
[1673392626478,2.2315878,1337.2,1337.1,19.60874464]
[1673392626629,2.2315878,1337.2,1337.1,12.12987464]
[1673392627926,2.2315878,1337.2,1337.1,12.11526894]
[1673392629546,2.2315878,1337.2,1337.1,8.3176083]
[1673392629713,24.6665178,1337.2,1337.1,5.21596407]
[1673392630070,2.2975878,1337.2,1337.1,5.21596407]
[1673392630389,2.2315878,1337.2,1337.1,5.21596407]
[1673392631171,2.2315878,1337.2,1337.1,3.87696407]
[1673392631563,2.2315878,1337.2,1337.1,3.81165592]
[1673392634538,1.11590125,1337.2,1337.1,1.85560386]
[1673392637112,1.11590125,1337.2,1337.1,12.75291501]
[1673392637134,1.11590125,1337.2,1337.1,20.23178501]
[1673392637250,1.11590125,1337.2,1337.1,27.77596316]
[1673392638252,1.11590125,1337.2,1337.1,22.15267502]
[1673392638575,1.11590125,1337.2,1337.1,33.42920566]
[1673392638734,1.11590125,1337.2,1337.1,25.95033566]
[1673392638948,1.11590125,1337.2,1337.1,33.42920566]
[1673392639789,1.11590125,1337.2,1337.1,35.28476589]
[1673392640855,1.11590125,1337.2,1337.1,35.28476011]
[1673392641076,1.11590125,1337.2,1337.1,33.42920566]
[1673392642621,1.11590125,1337.2,1337.1,25.95033566]
[1673392642846,1.11590125,1337.2,1337.1,18.47146566]
[1673392643967,1.11590125,1337.2,1337.1,25.95033566]
[1673392644101,1.11590125,1337.2,1337.1,18.47146566]
[1673392644320,1.11590125,1337.2,1337.1,8.91215451]
[1673392644638,1.11590125,1337.2,1337.1,5.11449387]
[1673392646187,8.59421125,1337.2,1337.1,5.11449387]
[1673392646399,1.18190125,1337.2,1337.1,5.11449387]
[1673392646611,1.11590125,1337.2,1337.1,5.11449387]
[1673392647564,1.11590125,1337.2,1337.1,20.07223387]
[1673392648126,1.11590125,1337.2,1337.1,5.11449387]
[1673392649144,1.11590125,1337.2,1337.1,31.34876451]
[1673392649459,1.11590125,1337.2,1337.1,34.90449445]
[1673392653465,1.11590125,1337.2,1337.1,36.76006791]
[1673392655198,1.11590125,1337.2,1337.1,39.54334488]
[1673392656317,1.11590125,1337.2,1337.1,32.06449882]
[1673392656770,1.11590125,1337.2,1337.1,39.54336882]
[1673392656942,1.11590125,1337.2,1337.1,42.32672708]
[1673392657987,1.11590125,1337.2,1337.1,31.29212714]
[1673392658353,1.11590125,1337.2,1337.1,35.98763888]
[1673392658562,1.11590125,1337.2,1337.1,28.50876888]
[1673392659314,1.11590125,1337.2,1337.1,35.98763888]
[1673392659469,1.11590125,1337.2,1337.1,38.77109037]
[1673392660371,1.11590125,1337.2,1337.1,31.29222037]
[1673392660617,1.11590125,1337.2,1337.1,38.77109037]
[1673392661988,1.11590125,1337.2,1337.1,31.29222037]
[1673392662578,1.11590125,1337.2,1337.1,37.43309037]
[1673392663142,1.11590125,1337.2,1337.1,29.95422037]
[1673392663506,1.11590125,1337.2,1337.1,37.43309037]
[1673392663817,1.11590125,1337.2,1337.1,43.73897027]
[1673392664395,1.11233148,1337.2,1337.1,45.41559512]
[1673392665280,1.11233148,1337.2,1337.1,43.73897027]
[1673392665662,1.11233148,1337.2,1337.1,49.83360464]
[1673392665901,1.11233148,1337.2,1337.1,52.07124821]
[1673392666231,0.33748741,1337.3,1337.2,2.5]
[1673392666396,0.33748741,1337.3,1337.2,44.94814954]
[1673392666607,0.33748741,1337.3,1337.2,46.13342659]
[1673392667030,0.33748741,1337.3,1337.2,44.45270416]
[1673392667275,0.33748741,1337.3,1337.2,40.61109296]
[1673392668383,0.33748741,1337.3,1337.2,38.11109296]
[1673392669474,1e-08,1337.3,1337.2,38.11109296]
[1673392670826,22.43325001,1337.3,1337.2,10.08974257]
[1673392671065,0.06600001,1337.3,1337.2,18.81958879]
[1673392671277,1e-08,1337.3,1337.2,18.81958879]
[1673392671597,1e-08,1337.3,1337.2,26.29789879]
[1673392672120,1e-08,1337.3,1337.2,18.81958879]
[1673392672295,1e-08,1337.3,1337.2,11.34127879]
[1673392672860,1e-08,1337.3,1337.2,26.29789879]
[1673392675725,1e-08,1337.3,1337.2,18.81958879]
[1673392680435,1e-08,1337.3,1337.2,26.29789879]
[1673392680653,1e-08,1337.3,1337.2,30.62497294]
[1673392681484,1e-08,1337.3,1337.2,32.4804526]
[1673392681954,1e-08,1337.3,1337.2,32.4804571]
[1673392682162,1e-08,1337.3,1337.2,30.62497294]
[1673392682536,1e-08,1337.3,1337.2,23.14666294]
[1673392683079,1e-08,1337.3,1337.2,3.86296879]
[1673392683325,1e-08,1337.3,1337.2,11.27597064]
[1673392683551,1e-08,1337.3,1337.2,11.34127879]
[1673392683953,1e-08,1337.3,1337.2,18.81958879]
[1673392685388,1e-08,1337.3,1337.2,26.29789879]
[1673392687295,1e-08,1337.3,1337.2,30.73696983]
[1673392687582,1e-08,1337.3,1337.2,23.25865983]
[1673392689884,3.71497191,1337.4,1337.2,18.81958879]
[1673392690096,1.11598839,1337.3,1337.2,0.06530815]
[1673392690353,1.11598839,1337.3,1337.2,7.47831]
[1673392690592,1.11598839,1337.3,1337.2,7.54361815]
[1673392692721,1.11598839,1337.3,1337.2,0.06530815]
[1673392692955,1.11598839,1337.3,1337.1,34.77885286]
[1673392693160,1.11598839,1337.3,1337.1,38.5765135]
[1673392693434,1.11598839,1337.3,1337.1,34.77885286]
[1673392693582,1.11598839,1337.3,1337.1,19.82164602]
[1673392693784,1.11598839,1337.3,1337.1,17.03820084]
[1673392693991,1.11598839,1337.3,1337.1,19.82164602]
[1673392694514,1.11598839,1337.3,1337.1,24.51314637]
[1673392694736,1.11598839,1337.3,1337.1,31.99201637]
[1673392694952,1.11598839,1337.3,1337.1,34.77546155]
[1673392695520,1.11598839,1337.3,1337.1,34.77547425]
[1673392696563,1.11598839,1337.3,1337.1,31.99201637]
[1673392698130,1.71725363,1337.3,1337.1,9.33930702]
[1673392698321,1.11598839,1337.2,1337.1,6.55584637]
[1673392705454,3.39055071,1337.3,1337.1,6.55584637]
[1673392706744,1.11598839,1337.2,1337.1,6.55584637]
[1673392706957,0.56123839,1337.2,1337.1,6.55584637]
[1673392717677,2.23453547,1337.2,1337.1,6.55584637]
[1673392718037,0.56123839,1337.2,1337.1,6.55584637]
[1673392719195,2.23453547,1337.2,1337.1,6.55584637]
[1673392721182,0.56123839,1337.2,1337.1,6.55584637]
[1673392721728,2.23453547,1337.2,1337.1,6.55584637]
[1673392722323,0.56123839,1337.2,1337.1,6.55584637]
[1673392722671,29.23361006,1337.2,1337.1,6.55584637]
[1673392722988,29.29961006,1337.2,1337.1,6.55584637]
[1673392723478,21.82130006,1337.2,1337.1,6.55584637]
[1673392724303,23.49726191,1337.2,1337.1,6.55584637]
[1673392724516,16.01895191,1337.2,1337.1,6.55584637]
[1673392725978,13.78727144,1337.2,1337.1,6.55584637]
[1673392726835,21.26558144,1337.2,1337.1,6.55584637]
[1673392727269,23.49726191,1337.2,1337.1,6.55584637]
[1673392727827,21.26558144,1337.2,1337.1,6.55584637]